fUSD/lending_fUSD_20250904
["ID","MTS","AMOUNT","RATE_DAILY","PERIOD"]
[383493558,1756957957734,-400.0,0.00024931,2]
[383493559,1756957957744,-392.9165879,0.00024931,2]
[383493560,1756957957754,-431.4,0.00024931,2]
[383493561,1756957957764,-400.0,0.00024931,2]
[383493562,1756957957773,-851.49,0.00024931,2]
[383493563,1756957957783,-400.0,0.00024931,2]
[383493564,1756957957793,-181.42765915,0.00024931,2]
[383493565,1756957957803,-435.75898082,0.00024931,2]
[383493566,1756957957813,-400.0,0.00024931,2]
[383493567,1756957957823,-499.07,0.00024931,2]
[383493568,1756957957833,-400.0,0.00024931,2]
[383493569,1756957957844,-436.71,0.00024931,2]
[383493570,1756957957854,-400.0,0.00024931,2]
[383493571,1756957957868,-400.0,0.00024931,2]
[383493572,1756957957878,-400.0,0.00024931,2]
[383493573,1756957957888,-400.0,0.00024931,2]
[383493574,1756957957898,-463.9456904,0.00024931,2]
[383493575,1756957957909,-400.0,0.00024931,2]
[383493576,1756957957919,-400.0,0.00024931,2]
[383493577,1756957957929,-400.0,0.00024931,2]
[383493578,1756957957942,-400.0,0.00024931,2]
[383493579,1756957958170,-400.0,0.00024931,2]
[383493580,1756957958181,-400.0,0.00024931,2]
[383493581,1756957958190,-400.0,0.00024931,2]
[383493582,1756957958200,-615.38,0.00024931,2]
[383493583,1756957958210,-400.0,0.00024931,2]
[383493584,1756957958219,-400.0,0.00024931,2]
[383493585,1756957958230,-400.0,0.00024931,2]
[383493586,1756957958239,-479.48,0.00024931,2]
[383493587,1756957958249,-400.0,0.00024931,2]
[383493588,1756957958260,-400.0,0.00024931,2]
[383493589,1756957958269,-1036.74,0.00024931,2]
[383493590,1756957958279,-400.0,0.00024931,2]
[383493591,1756957958288,-400.0,0.00024931,2]
[383493592,1756957958297,-400.0,0.00024931,2]
[383493593,1756957958307,-400.0,0.00024931,2]
[383493594,1756957958317,-400.0,0.00024931,2]
[383493595,1756957958326,-400.0,0.00024931,2]
[383493596,1756957958335,-401.6,0.00024931,2]
[383493597,1756957958344,-400.0,0.00024931,2]
[383493598,1756957958354,-400.0,0.00024931,2]
[383493599,1756957958363,-400.0,0.00024931,2]
[383493600,1756957958372,-446.69643774,0.00024931,2]
[383493601,1756957958382,-400.0,0.00024931,2]
[383493602,1756957958391,-400.0,0.00024931,2]
[383493603,1756957958400,-400.0,0.00024931,2]
[383493604,1756957958410,-400.0,0.00024931,2]
[383493605,1756957958419,-400.0,0.00024931,2]
[383493606,1756957958429,-400.0,0.00024931,2]
[383493607,1756957958438,-400.0,0.00024931,2]
[383493608,1756957958448,-242.16616257,0.00024931,2]
[383493609,1756957958458,-400.0,0.00024931,2]
[383493610,1756957958467,-400.0,0.00024931,2]
[383493611,1756957958477,-400.0,0.00024931,2]
[383493612,1756957958487,-400.0,0.00024931,2]
[383493613,1756957958496,-400.0,0.00024931,2]
[383493614,1756957958505,-400.0,0.00024931,2]
[383493615,1756957958515,-400.0,0.00024931,2]
[383493616,1756957958525,-632.26,0.00024931,2]
[383493617,1756957958534,-400.0,0.00024931,2]
[383493618,1756957958543,-400.0,0.00024931,2]
[383493619,1756957958553,-400.0,0.00024931,2]
[383493620,1756957958562,-400.0,0.00024931,2]
[383493621,1756957958572,-400.0,0.00024931,2]
[383493622,1756957958581,-400.0,0.00024931,2]
[383493623,1756957958591,-400.0,0.00024931,2]
[383493624,1756957958600,-400.0,0.00024931,2]
[383493625,1756957958609,-400.0,0.00024931,2]
[383493626,1756957958619,-424.28937785,0.00024931,2]
[383493627,1756957958627,-400.0,0.00024931,2]
[383493628,1756957958637,-264.30672357,0.00024931,2]
[383493629,1756957958646,-953.64,0.00024931,2]
[383493630,1756957958655,-401.88,0.00024931,2]
[383493631,1756957958664,-400.0,0.00024931,2]
[383493632,1756957958673,-400.0,0.00024931,2]
[383493633,1756957958683,-400.0,0.00024931,2]
[383493634,1756957958692,-400.0,0.00024931,2]
[383493635,1756957958701,-495.19706,0.00024931,2]
[383493636,1756957958711,-400.0,0.00024931,2]
[383493637,1756957958720,-420.93,0.00024931,2]
[383493638,1756957958729,-412.49,0.00024931,2]
[383493639,1756957958738,-400.0,0.00024931,2]
[383493640,1756957958748,-400.0,0.00024931,2]
[383493641,1756957958758,-400.0,0.00024931,2]
[383493642,1756957958767,-480.02,0.00024931,2]
[383493643,1756957958777,-400.0,0.00024931,2]
[383493644,1756957958786,-917.65,0.00024931,2]
[383493645,1756957958795,-400.0,0.00024931,2]
[383493646,1756957958804,-400.0,0.00024931,2]
[383493647,1756957958814,-400.0,0.00024931,2]
[383493648,1756957958823,-400.0,0.00024931,2]
[383493649,1756957958832,-3053.61,0.00024931,2]
[383493650,1756957958842,-445.66,0.00024931,2]
[383493651,1756957958851,-400.0,0.00024931,2]
[383493652,1756957958861,-400.0,0.00024931,2]
[383493653,1756957958872,-444.39,0.00024931,2]
[383493654,1756957958881,-400.0,0.00024931,2]
[383493655,1756957958890,-400.0,0.00024931,2]
[383493656,1756957958900,-400.0,0.00024931,2]
[383493657,1756957958911,-400.0,0.00024931,2]
[383493658,1756957958920,-462.22,0.00024931,2]
[383493659,1756957958929,-202.46434551,0.00024931,2]
[383493660,1756957958939,-400.0,0.00024931,2]
[383493661,1756957958948,-852.22,0.00024931,2]
[383493662,1756957958958,-2103.21,0.00024931,2]
[383493663,1756957958967,-400.0,0.00024931,2]
[383493664,1756957958977,-724.76,0.00024931,2]
[383493665,1756957958986,-400.0,0.00024931,2]
[383493666,1756957958995,-400.0,0.00024931,2]
[383493667,1756957959004,-400.0,0.00024931,2]
[383493668,1756957959013,-400.0,0.00024931,2]
[383493669,1756957959023,-400.0,0.00024931,2]
[383493670,1756957959033,-400.0,0.00024931,2]
[383493671,1756957959042,-400.0,0.00024931,2]
[383493672,1756957959051,-400.0,0.00024931,2]
[383493673,1756957959060,-400.0,0.00024931,2]
[383493674,1756957959069,-400.0,0.00024931,2]
[383493675,1756957959078,-400.0,0.00024931,2]
[383493676,1756957959087,-400.0,0.00024931,2]
[383493677,1756957959097,-400.0,0.00024931,2]
[383493678,1756957959106,-482.58,0.00024931,2]
[383493679,1756957959115,-400.0,0.00024931,2]
[383493680,1756957959125,-400.0,0.00024931,2]
[383493681,1756957959134,-400.0,0.00024931,2]
[383493682,1756957959143,-437.89,0.00024931,2]
[383493683,1756957959153,-400.0,0.00024931,2]
[383493684,1756957959162,-400.0,0.00024931,2]
[383493685,1756957959172,-462.29,0.00024931,2]
[383493686,1756957959181,-462.24784021,0.00024931,2]
[383493687,1756957959191,-494.18,0.00024931,2]
[383493688,1756957959200,-473.61,0.00024931,2]
[383493689,1756957959209,-400.0,0.00024931,2]
[383493690,1756957959218,-400.0,0.00024931,2]
[383493691,1756957959227,-400.0,0.00024931,2]
[383493692,1756957959236,-229.87015511,0.00024931,2]
[383493693,1756957959245,-515.32,0.00024931,2]
[383493694,1756957959255,-258.93612125,0.00024931,2]
[383493695,1756957959265,-212.66071639,0.00024931,2]
[383493696,1756957959274,-400.0,0.00024931,2]
[383493697,1756957959283,-400.0,0.00024931,2]
[383493698,1756957959292,-400.0,0.00024931,2]
[383493699,1756957959301,-400.0,0.00024931,2]
[383493700,1756957959310,-377.29988514,0.00024931,2]
[383493701,1756957959320,-544.09,0.00024931,2]
[383493702,1756957959330,-449.45,0.00024931,2]
[383493703,1756957959339,-400.0,0.00024931,2]
[383493704,1756957959347,-464.73,0.00024931,2]
[383493705,1756957959357,-163.25982705,0.00024931,2]
[383493706,1756957959366,-400.0,0.00024931,2]
[383493707,1756957959375,-400.0,0.00024931,2]
[383493708,1756957959384,-400.0,0.00024931,2]
[383493709,1756957959394,-408.02,0.00024931,2]
[383493710,1756957959404,-400.0,0.00024931,2]
[383493711,1756957959413,-400.0,0.00024931,2]
[383493712,1756957959423,-1345.88,0.00024931,2]
[383493713,1756957959431,-400.0,0.00024931,2]
[383493714,1756957959441,-400.0,0.00024931,2]
[383493715,1756957959451,-535.10387005,0.00024931,2]
[383493716,1756957959460,-400.0,0.00024931,2]
[383493717,1756957959470,-1946.25,0.00024931,2]
[383493718,1756957959479,-400.0,0.00024931,2]
[383493719,1756957959488,-400.0,0.00024931,2]
[383493720,1756957959497,-400.0,0.00024931,2]
[383493721,1756957959506,-400.0,0.00024931,2]
[383493722,1756957959516,-1651.86,0.00024931,2]
[383493723,1756957959526,-400.0,0.00024931,2]
[383493724,1756957959535,-1617.94,0.00024931,2]
[383493725,1756957959544,-746.86,0.00024931,2]
[383493726,1756957959554,-400.0,0.00024931,2]
[383493727,1756957959563,-153.06537537,0.00024931,2]
[383493728,1756957959572,-400.0,0.00024931,2]
[383493729,1756957959581,-449.64,0.00024931,2]
[383493730,1756957959590,-657.88,0.00024931,2]
[383493731,1756957959600,-400.0,0.00024931,2]
[383493732,1756957959610,-400.0,0.00024931,2]
[383493733,1756957959619,-451.82152308,0.00024931,2]
[383493734,1756957959629,-400.0,0.00024931,2]
[383493735,1756957959639,-235.21853977,0.00024931,2]
[383493736,1756957959648,-400.0,0.00024931,2]
[383493737,1756957959657,-400.0,0.00024931,2]
[383493738,1756957959666,-400.0,0.00024931,2]
[383493739,1756957959676,-387.17572683,0.00024931,2]
[383493740,1756957959685,-400.0,0.00024931,2]
[383493741,1756957959695,-457.34,0.00024931,2]
[383493742,1756957959704,-400.0,0.00024931,2]
[383493743,1756957959713,-400.0,0.00024931,2]
[383493744,1756957959722,-400.0,0.00024931,2]
[383493745,1756957959732,-400.0,0.00024931,2]
[383493746,1756957959742,-400.0,0.00024931,2]
[383493747,1756957959751,-400.0,0.00024931,2]
[383493748,1756957959760,-400.0,0.00024931,2]
[383493749,1756957959769,-400.0,0.00024931,2]
[383493750,1756957959778,-400.0,0.00024931,2]
[383493751,1756957959788,-400.0,0.00024931,2]
[383493752,1756957959797,-400.0,0.00024931,2]
[383493753,1756957959806,-2851.02,0.00024931,2]
[383493754,1756957959815,-827.27,0.00024931,2]
[383493755,1756957959824,-403.77,0.00024931,2]
[383493756,1756957959834,-400.0,0.00024931,2]
[383493757,1756957959843,-400.0,0.00024931,2]
[383493758,1756957959852,-1556.07,0.00024931,2]
[383493759,1756957959863,-400.0,0.00024931,2]
[383493760,1756957959873,-2172.38,0.00024931,2]
[383493761,1756957959884,-400.0,0.00024931,2]
[383493762,1756957959893,-400.0,0.00024931,2]
[383493763,1756957959903,-400.0,0.00024931,2]
[383493764,1756957959913,-400.0,0.00024931,2]
[383493765,1756957959923,-412.8175445,0.00024931,2]
[383493766,1756957959932,-214.73051073,0.00024931,2]
[383493767,1756957959943,-486.02,0.00024931,2]
[383493768,1756957959953,-525.8,0.00024931,2]
[383493769,1756957959962,-400.0,0.00024931,2]
[383493770,1756957959972,-400.0,0.00024931,2]
[383493771,1756957959982,-400.0,0.00024931,2]
[383493772,1756957959992,-514.55,0.00024931,2]
[383493773,1756957960002,-525.3,0.00024931,2]
[383493774,1756957960012,-445.57,0.00024931,2]
[383493775,1756957960021,-400.0,0.00024931,2]
[383493776,1756957960031,-433.87060838,0.00024931,2]
[383493777,1756957960040,-474.01,0.00024931,2]
[383493778,1756957960050,-473.21,0.00024931,2]
[383493779,1756957960059,-400.0,0.00024931,2]
[383493780,1756957960069,-419.22,0.00024931,2]
[383493781,1756957960078,-518.98,0.00024931,2]
[383493782,1756957960087,-293.27280183,0.00024931,2]
[383493783,1756957960096,-400.0,0.00024931,2]
[383493784,1756957960106,-400.0,0.00024931,2]
[383493785,1756957960115,-400.0,0.00024931,2]
[383493786,1756957960124,-403.33,0.00024931,2]
[383493787,1756957960134,-400.0,0.00024931,2]
[383493788,1756957960146,-400.0,0.00024931,2]
[383493789,1756957960156,-406.0,0.00024931,2]
[383493790,1756957960167,-400.0,0.00024931,2]
[383493791,1756957960178,-400.0,0.00024931,2]
[383493792,1756957960188,-400.0,0.00024931,2]
[383493793,1756957960198,-405.53,0.00024931,2]
[383493794,1756957960208,-2430.87,0.00024931,2]
[383493795,1756957960217,-400.0,0.00024931,2]
[383493796,1756957960226,-400.0,0.00024931,2]
[383493797,1756957960236,-400.0,0.00024931,2]
[383493798,1756957960247,-1658.24,0.00024931,2]
[383493799,1756957960258,-429.64,0.00024931,2]
[383493800,1756957960267,-400.0,0.00024931,2]
[383493801,1756957960275,-778.2,0.00024931,2]
[383493802,1756957960284,-171.31933154,0.00024931,2]
[383493803,1756957960293,-652.71,0.00024931,2]
[383493804,1756957960302,-400.0,0.00024931,2]
[383493805,1756957960311,-400.0,0.00024931,2]
[383493806,1756957960320,-400.0,0.00024931,2]
[383493807,1756957960330,-400.0,0.00024931,2]
[383493808,1756957960339,-415.38,0.00024931,2]
[383493809,1756957960348,-1295.76,0.00024931,2]
[383493810,1756957960359,-400.0,0.00024931,2]
[383493811,1756957960368,-803.28,0.00024931,2]
[383493812,1756957960378,-400.0,0.00024931,2]
[383493813,1756957960387,-400.0,0.00024931,2]
[383493814,1756957960397,-400.0,0.00024931,2]
[383493815,1756957960406,-2004.44,0.00024931,2]
[383493816,1756957960415,-664.86,0.00024931,2]
[383493817,1756957960425,-400.0,0.00024931,2]
[383493818,1756957960434,-400.0,0.00024931,2]
[383493819,1756957960445,-400.0,0.00024931,2]
[383493820,1756957960454,-400.0,0.00024931,2]
[383493821,1756957960464,-400.0,0.00024931,2]
[383493822,1756957960473,-400.0,0.00024931,2]
[383493823,1756957960482,-290.75730141,0.00024931,2]
[383493824,1756957960492,-1580.62,0.00024931,2]
[383493825,1756957960503,-158.10884686,0.00024931,2]
[383493826,1756957960514,-402.53,0.00024931,2]
[383493827,1756957960523,-400.0,0.00024931,2]
[383493828,1756957960533,-3142.11,0.00024931,2]
[383493829,1756957960542,-400.0,0.00024931,2]
[383493830,1756957960553,-400.0,0.00024931,2]
[383493831,1756957960563,-400.0,0.00024931,2]
[383493832,1756957960572,-684.19,0.00024931,2]
[383493833,1756957960581,-400.0,0.00024931,2]
[383493834,1756957960591,-410.84220204,0.00024931,2]
[383493835,1756957960601,-400.0,0.00024931,2]
[383493836,1756957960611,-575.44,0.00024931,2]
[383493837,1756957960620,-2962.71,0.00024931,2]
[383493838,1756957960630,-400.0,0.00024931,2]
[383493839,1756957960639,-419.2,0.00024931,2]
[383493840,1756957960648,-500.0,0.00024932,2]
[383493841,1756957960658,-845.08163095,0.00024947,2]
[383493842,1756957960671,-477.4652599,0.00024952,2]
[383493843,1756957960681,-246.6180971,0.00024952,2]
[383493844,1756957960691,-254416.63463423,0.00025,2]
[383493845,1756957960701,-203.2276805,0.00025,2]
[383493846,1756957960710,-1747.8609854,0.00025,2]
[383493847,1756957960720,-304.67464364,0.00025,2]
[383493848,1756957960730,-360.0,0.00025,2]
[383493849,1756957960739,-2980.7818356,0.00025,2]
[383493850,1756957960748,-3167.00320985,0.00025,2]
[383493851,1756957960758,-15023.75268145,0.00025,2]
[383493852,1756957960767,-1042.22285346,0.00025,2]
[383493853,1756957960777,-163.81387156,0.00025,2]
[383493854,1756957960788,-3699.72396862,0.00025,2]
[383493855,1756957960799,-5000.0,0.00025,2]
[383493856,1756957960808,-1690.07102598,0.00025,2]
[383493857,1756957960817,-58749.10299787,0.00025,2]
[383493858,1756957960827,-213.0,0.00025,2]
[383493859,1756957960836,-215.0,0.00025,2]
[383493860,1756957960845,-214.0,0.00025,2]
[383493861,1756957960856,-212.7,0.00025,2]
[383493862,1756957960868,-1282.67972615,0.00025,4]
[383493863,1756957960877,-300.0,0.00025,3]
[383493864,1756957960887,-150.0,0.00025,5]
[383493865,1756957960897,-1000.0,0.00025,2]
[383493866,1756957960907,-2600.0,0.00025,2]
[383493867,1756957960916,-200000.0,0.00025,2]
[383493868,1756957960926,-212.59699798,0.00025,30]
[383493869,1756957960936,-514.64478986,0.00025,30]
[383493870,1756957960946,-160.0,0.00025,30]
[383493871,1756957960956,-160.0,0.00025,30]
[383493872,1756957960965,-160.0,0.00025,30]
[383493873,1756957960974,-4000.0,0.00025,4]
[383493874,1756957960984,-15000.0,0.0002501,2]
[383493875,1756957960994,-152.0,0.00025043,8]
[383493876,1756957961003,-924.0,0.00025058,2]
[383493877,1756957961015,-3382.0,0.00025058,2]
[383493878,1756957961024,-2035.0,0.00025058,2]
[383493879,1756957961035,-1258.0,0.00025058,2]
[383493880,1756957961044,-1300.0,0.00025058,2]
[383493881,1756957961054,-600.0,0.00025058,2]
[383493882,1756957961064,-567.0,0.00025058,2]
[383493883,1756957961074,-1577.0,0.00025058,2]
[383493884,1756957961083,-1175.0,0.00025058,2]
[383493885,1756957961093,-896.0,0.00025058,2]
[383493886,1756957961103,-811.0,0.00025058,2]
[383493887,1756957961113,-6163.0,0.00025058,2]
[383493888,1756957961123,-2241.0,0.00025058,2]
[383493889,1756957961133,-4163.0,0.00025058,2]
[383493890,1756957961143,-21149.0,0.00025058,2]
[383493891,1756957961153,-724.0,0.00025058,2]
[383493892,1756957961162,-500.0,0.00025069,2]
[383493893,1756957961172,-298.26089446,0.00025093,2]
[383493894,1756957961182,-200.0,0.000251,7]
[383493895,1756957961192,-250.0,0.000251,2]
[383493896,1756957961202,-1086.0,0.00025115,2]
[383493897,1756957961211,-400.0,0.00025204,2]
[383493898,1756957961221,-400.0,0.00025204,2]
[383493899,1756957961231,-400.0,0.00025204,2]
[383493900,1756957961241,-400.0,0.00025204,2]
[383493901,1756957961250,-400.0,0.00025204,2]
[383493902,1756957961260,-275.6393824,0.00025204,2]
[383493903,1756957961270,-357.22072943,0.00025204,2]
[383493904,1756957961280,-602.69,0.00025205,2]
[383493905,1756957961289,-400.0,0.00025205,2]
[383493906,1756957961299,-227.53680956,0.00025205,2]
[383493907,1756957961308,-400.0,0.00025205,2]
[383493908,1756957961319,-416.8843596,0.00025205,2]
[383493909,1756957961329,-400.0,0.00025205,2]
[383493910,1756957961339,-400.0,0.00025205,2]
[383493911,1756957961350,-242.29304562,0.00025205,2]
[383493912,1756957961361,-212.11171858,0.00025205,2]
[383493913,1756957961370,-211.52976532,0.00025205,2]
[383493914,1756957961380,-424.88,0.00025205,2]
[383493915,1756957961389,-400.0,0.00025205,2]
[383493916,1756957961398,-400.0,0.00025205,2]
[383493917,1756957961408,-418.16,0.00025205,2]
[383493918,1756957961417,-454.46,0.00025205,2]
[383493919,1756957961427,-400.0,0.00025205,2]
[383493920,1756957961437,-400.0,0.00025205,2]
[383493921,1756957961450,-469.0,0.00025205,2]
[383493922,1756957961459,-307.47361012,0.00025205,2]
[383493923,1756957961469,-400.0,0.00025205,2]
[383493924,1756957961479,-400.0,0.00025205,2]
[383493925,1756957961490,-557.54,0.00025205,2]
[383493926,1756957961499,-400.0,0.00025205,2]
[383493927,1756957961508,-400.0,0.00025205,2]
[383493928,1756957961518,-400.0,0.00025205,2]
[383493929,1756957961528,-400.0,0.00025205,2]
[383493930,1756957961537,-412.42496129,0.00025205,2]
[383493931,1756957961549,-709.34,0.00025205,2]
[383493932,1756957961559,-400.0,0.00025205,2]
[383493933,1756957961570,-400.0,0.00025205,2]
[383493934,1756957961581,-400.0,0.00025205,2]
[383493935,1756957961591,-546.29362201,0.00025205,2]
[383493936,1756957961602,-288.37281144,0.00025205,2]
[383493937,1756957961612,-400.0,0.00025205,2]
[383493938,1756957961622,-400.0,0.00025205,2]
[383493939,1756957961631,-486.03,0.00025205,2]
[383493940,1756957961642,-494.41953131,0.00025205,2]
[383493941,1756957961651,-400.0,0.00025205,2]
[383493942,1756957961661,-400.0,0.00025205,2]
[383493943,1756957961672,-229.53553525,0.00025205,2]
[383493944,1756957961942,-400.0,0.00025205,2]
[383493945,1756957961952,-411.28393443,0.00025205,2]
[383493946,1756957961962,-400.0,0.00025205,2]
[383493947,1756957961972,-544.12725531,0.00025205,2]
[383493948,1756957961982,-1352.44,0.00025205,2]
[383493949,1756957961992,-400.0,0.00025205,2]
[383493950,1756957962002,-400.0,0.00025205,2]
[383493951,1756957962011,-228.94995756,0.00025205,2]
[383493952,1756957962021,-400.0,0.00025205,2]
[383493953,1756957962030,-400.0,0.00025205,2]
[383493954,1756957962040,-375.68094493,0.00025205,2]
[383493955,1756957962049,-400.0,0.00025205,2]
[383493956,1756957962058,-400.0,0.00025205,2]
[383493957,1756957962067,-424.6748977,0.00025205,2]
[383493958,1756957962077,-400.0,0.00025205,2]
[383493959,1756957962087,-179.16755445,0.00025205,2]
[383493960,1756957962096,-400.0,0.00025205,2]
[383493961,1756957962105,-400.0,0.00025205,2]
[383493962,1756957962115,-401.60714975,0.00025205,2]
[383493963,1756957962124,-400.0,0.00025205,2]
[383493964,1756957962134,-400.0,0.00025205,2]
[383493965,1756957962144,-400.0,0.00025205,2]
[383493966,1756957962153,-431.4,0.00025205,2]
[383493967,1756957962163,-400.0,0.00025205,2]
[383493968,1756957962172,-851.49,0.00025205,2]
[383493969,1756957962181,-400.0,0.00025205,2]
[383493970,1756957962192,-400.0,0.00025205,2]
[383493971,1756957962201,-499.07,0.00025205,2]
[383493972,1756957962211,-414.24033937,0.00025205,2]
[383493973,1756957962220,-436.71,0.00025205,2]
[383493974,1756957962229,-400.0,0.00025205,2]
[383493975,1756957962240,-400.0,0.00025205,2]
[383493976,1756957962249,-400.0,0.00025205,2]
[383493977,1756957962259,-400.0,0.00025205,2]
[383493978,1756957962268,-400.0,0.00025205,2]
[383493979,1756957962277,-400.0,0.00025205,2]
[383493980,1756957962287,-400.0,0.00025205,2]
[383493981,1756957962296,-400.0,0.00025205,2]
[383493982,1756957962305,-400.0,0.00025205,2]
[383493983,1756957962314,-400.0,0.00025205,2]
[383493984,1756957962324,-400.0,0.00025205,2]
[383493985,1756957962333,-615.38,0.00025205,2]
[383493986,1756957962342,-400.0,0.00025205,2]
[383493987,1756957962351,-239.56799089,0.00025205,2]
[383493988,1756957962361,-400.0,0.00025205,2]
[383493989,1756957962371,-479.48,0.00025205,2]
[383493990,1756957962381,-400.0,0.00025205,2]
[383493991,1756957962390,-400.0,0.00025205,2]
[383493992,1756957962400,-1036.74,0.00025205,2]
[383493993,1756957962409,-265.47317206,0.00025205,2]
[383493994,1756957962419,-279.41656398,0.00025205,2]
[383493995,1756957962428,-400.0,0.00025205,2]
[383493996,1756957962437,-400.0,0.00025205,2]
[383493997,1756957962458,-400.0,0.00025205,2]
[383493998,1756957962468,-400.0,0.00025205,2]
[383493999,1756957962478,-401.6,0.00025205,2]
[383494000,1756957962488,-400.0,0.00025205,2]
[383494001,1756957962498,-400.0,0.00025205,2]
[383494002,1756957962507,-307.66035717,0.00025205,2]
[383494003,1756957962517,-151.97121479,0.00025205,2]
[383494004,1756957962526,-400.0,0.00025205,2]
[383494005,1756957962535,-400.0,0.00025205,2]
[383494006,1756957962545,-400.0,0.00025205,2]
[383494007,1756957962554,-400.0,0.00025205,2]
[383494008,1756957962564,-400.0,0.00025205,2]
[383494009,1756957962573,-400.0,0.00025205,2]
[383494010,1756957962582,-400.0,0.00025205,2]
[383494011,1756957962592,-210.02646904,0.00025205,2]
[383494012,1756957962601,-400.0,0.00025205,2]
[383494013,1756957962611,-400.0,0.00025205,2]
[383494014,1756957962621,-400.0,0.00025205,2]
[383494015,1756957962631,-400.0,0.00025205,2]
[383494016,1756957962640,-400.0,0.00025205,2]
[383494017,1756957962649,-632.26,0.00025205,2]
[383494018,1756957962659,-400.0,0.00025205,2]
[383494019,1756957962668,-400.0,0.00025205,2]
[383494020,1756957962677,-429.76493301,0.00025205,2]
[383494021,1756957962687,-400.0,0.00025205,2]
[383494022,1756957962696,-370.46084492,0.00025205,2]
[383494023,1756957962706,-400.0,0.00025205,2]
[383494024,1756957962716,-228.70208412,0.00025205,2]
[383494025,1756957962725,-400.0,0.00025205,2]
[383494026,1756957962735,-400.0,0.00025205,2]
[383494027,1756957962745,-186.03507183,0.00025205,2]
[383494028,1756957962758,-953.64,0.00025205,2]
[383494029,1756957962772,-401.88,0.00025205,2]
[383494030,1756957962781,-192.68356943,0.00025205,2]
[383494031,1756957962791,-400.0,0.00025205,2]
[383494032,1756957962800,-400.0,0.00025205,2]
[383494033,1756957962809,-400.0,0.00025205,2]
[383494034,1756957962819,-330.82202561,0.00025205,2]
[383494035,1756957962829,-420.93,0.00025205,2]
[383494036,1756957962837,-412.49,0.00025205,2]
[383494037,1756957962846,-400.0,0.00025205,2]
[383494038,1756957962856,-400.0,0.00025205,2]
[383494039,1756957962869,-400.0,0.00025205,2]
[383494040,1756957962879,-480.02,0.00025205,2]
[383494041,1756957962887,-400.0,0.00025205,2]
[383494042,1756957962896,-917.65,0.00025205,2]
[383494043,1756957962905,-400.0,0.00025205,2]
[383494044,1756957962913,-400.0,0.00025205,2]
[383494045,1756957962922,-400.0,0.00025205,2]
[383494046,1756957962931,-400.0,0.00025205,2]
[383494047,1756957962942,-445.66,0.00025205,2]
[383494048,1756957962951,-3053.61,0.00025205,2]
[383494049,1756957962960,-400.0,0.00025205,2]
[383494050,1756957962969,-444.39,0.00025205,2]
[383494051,1756957962978,-400.0,0.00025205,2]
[383494052,1756957962986,-400.0,0.00025205,2]
[383494053,1756957962995,-400.0,0.00025205,2]
[383494054,1756957963004,-400.0,0.00025205,2]
[383494055,1756957963013,-400.0,0.00025205,2]
[383494056,1756957963022,-462.22,0.00025205,2]
[383494057,1756957963031,-400.0,0.00025205,2]